bitfinex/quotes_BTCUSD_20250902
["timestamp","ask_amount","ask_price","bid_price","bid_amount"]
[1756785277466,0.88368916,110620.0,110610.0,0.28013146]
[1756785278095,1.06448829,110620.0,110610.0,0.28013146]
[1756785278276,0.62949913,110620.0,110610.0,0.28013146]
[1756785278481,0.88368916,110620.0,110610.0,0.27689146]
[1756785279725,1.06448829,110620.0,110610.0,0.27689146]
[1756785280338,1.06643829,110620.0,110610.0,0.27689146]
[1756785280980,1.06959829,110620.0,110610.0,0.27473146]
[1756785282406,1.06959829,110620.0,110610.0,0.27683146]
[1756785284087,1.06448829,110620.0,110610.0,0.27683146]
[1756785284289,1.06643829,110620.0,110610.0,0.27683146]
[1756785284652,1.06959829,110620.0,110610.0,0.27683146]
[1756785285411,0.4487,110620.0,110610.0,0.27992146]
[1756785285617,1.06959829,110620.0,110610.0,0.09391599]
[1756785285817,1.06959829,110620.0,110610.0,0.27473146]
[1756785286734,1.06959829,110620.0,110610.0,0.27683146]
[1756785287030,0.62089829,110620.0,110610.0,0.27683146]
[1756785288231,0.43498916,110620.0,110610.0,0.27992146]
[1756785288480,0.43494916,110620.0,110610.0,0.27992146]
[1756785289532,0.28306916,110620.0,110610.0,0.27992146]
[1756785290845,0.38625441,110630.0,110610.0,0.27992146]
[1756785291078,0.46386829,110620.0,110610.0,0.18800547]
[1756785291521,0.28306916,110620.0,110610.0,0.18800547]
[1756785291732,0.28306916,110620.0,110610.0,0.18491547]
[1756785291963,0.28501916,110620.0,110610.0,0.18491547]
[1756785292688,0.72625441,110630.0,110620.0,0.18079913]
[1756785292902,1.01127357,110630.0,110620.0,0.09191599]
[1756785293672,1.29410443,110630.0,110620.0,0.09191599]
[1756785294305,1.29410443,110630.0,110620.0,0.09391599]
[1756785294657,1.29510443,110630.0,110620.0,0.27471512]
[1756785295092,1.29410443,110630.0,110620.0,0.27471512]
[1756785295419,1.29410443,110630.0,110620.0,0.09391599]
[1756785295797,1.3214251,110630.0,110620.0,0.002]
[1756785296536,1.3486021,110630.0,110620.0,0.002]
[1756785298076,1.3072096,110630.0,110620.0,0.002]
[1756785300423,1.32673698,110630.0,110620.0,0.002]
[1756785300689,1.36711187,110630.0,110620.0,0.002]
[1756785303040,1.76291669,110630.0,110620.0,0.002]
[1756785303241,6.82727493,110630.0,110620.0,0.002]
[1756785303941,0.52081547,110610.0,110600.0,0.00014119]
[1756785304167,1.25808287,110610.0,110600.0,0.00014119]
[1756785304368,1.26003287,110610.0,110600.0,0.00014119]
[1756785304575,1.29037287,110610.0,110600.0,0.00014119]
[1756785304783,1.38228886,110610.0,110600.0,0.00014119]
[1756785305365,1.66523887,110610.0,110600.0,0.00014119]
[1756785305581,1.69255954,110610.0,110600.0,0.00014119]
[1756785305786,1.40960953,110610.0,110600.0,0.00014119]
[1756785306631,1.71349836,110610.0,110600.0,0.00014119]
[1756785306846,1.78301836,110610.0,110600.0,0.00014119]
[1756785307664,7.23329168,110610.0,110600.0,0.00214119]
[1756785307873,6.9811217,110610.0,110600.0,0.00214119]
[1756785308280,6.73736571,110610.0,110600.0,0.00214119]
[1756785308482,6.88920571,110610.0,110600.0,0.00014119]
[1756785308699,6.73736571,110610.0,110600.0,0.00014119]
[1756785308899,6.89120571,110610.0,110600.0,0.00014119]
[1756785309854,6.89320571,110610.0,110600.0,0.00014119]
[1756785310278,6.88485345,110610.0,110600.0,0.00014119]
[1756785310698,6.73501345,110610.0,110600.0,0.00014119]
[1756785310828,1.36389287,110610.0,110600.0,0.00014119]
[1756785311710,1.35989287,110610.0,110600.0,0.00014119]
[1756785311862,1.36089287,110610.0,110600.0,0.00014119]
[1756785313121,1.36189287,110610.0,110600.0,0.00014119]
[1756785313531,1.41331926,110610.0,110600.0,0.00014119]
[1756785314264,1.36189287,110610.0,110600.0,0.00014119]
[1756785315212,1.21005287,110610.0,110600.0,0.00014119]
[1756785315388,1.36189287,110610.0,110600.0,0.00216119]
[1756785315634,1.34236549,110610.0,110600.0,0.00216119]
[1756785316257,1.18541549,110610.0,110600.0,0.00216119]
[1756785316472,0.49294548,110610.0,110600.0,0.00523119]
[1756785316651,0.61760548,110610.0,110600.0,0.18606301]
[1756785316895,0.95760548,110610.0,110600.0,0.18606301]
[1756785317104,0.95760548,110610.0,110600.0,0.277979]
[1756785317105,0.95660548,110610.0,110600.0,0.277979]
[1756785317305,0.62395001,110610.0,110600.0,0.277979]
[1756785317885,0.80376548,110610.0,110600.0,0.277979]
[1756785318314,0.80476548,110610.0,110600.0,0.277979]
[1756785318859,0.95660548,110610.0,110600.0,0.09407718]
[1756785319096,1.24463549,110610.0,110600.0,0.09407718]
[1756785319444,1.24363549,110610.0,110600.0,0.09407718]
[1756785319651,1.24059549,110610.0,110600.0,0.274909]
[1756785320057,0.49184,110610.0,110600.0,0.279979]
[1756785320269,0.95560548,110610.0,110600.0,0.279979]
[1756785320473,0.77479001,110610.0,110600.0,0.279979]
[1756785320696,0.95560548,110610.0,110600.0,0.279979]
[1756785321995,0.80376548,110610.0,110600.0,0.279979]
[1756785322872,0.80376548,110610.0,110600.0,0.09405718]
[1756785322873,0.96064548,110610.0,110600.0,0.09405718]
[1756785323080,1.24359549,110610.0,110600.0,0.09405718]
[1756785323332,1.24359549,110610.0,110600.0,0.09607718]
[1756785323503,0.96064548,110610.0,110600.0,0.09607718]
[1756785323706,1.24359549,110610.0,110600.0,0.09607718]
[1756785324695,1.24359549,110610.0,110600.0,0.09405718]
[1756785325320,1.24359549,110610.0,110600.0,0.00214119]
[1756785325504,1.33551148,110610.0,110600.0,0.00214119]
[1756785326181,1.55386617,110610.0,110600.0,0.00214119]
[1756785326391,1.58104917,110610.0,110600.0,0.00214119]
[1756785326606,1.16579356,110610.0,110600.0,0.00214119]
[1756785326825,1.31759356,110610.0,110600.0,0.00214119]
[1756785327233,1.31759356,110610.0,110600.0,0.00014119]
[1756785329359,1.31859356,110610.0,110600.0,0.00014119]
[1756785330522,0.85144288,110610.0,110600.0,0.00523119]
[1756785330758,1.00832288,110610.0,110600.0,0.00216119]
[1756785330989,1.00832288,110610.0,110600.0,0.00014119]
[1756785330990,1.29127289,110610.0,110600.0,0.00014119]
[1756785332068,1.27177849,110610.0,110600.0,0.00014119]
[1756785332293,1.29129036,110610.0,110600.0,0.00014119]
[1756785332733,1.29029036,110610.0,110600.0,0.00014119]
[1756785333163,1.29029036,110610.0,110600.0,0.00214119]
[1756785336987,1.13849036,110610.0,110600.0,0.00014119]
[1756785337257,1.28825036,110610.0,110600.0,0.00219119]
[1756785338343,1.3296992,110610.0,110600.0,0.00219119]
[1756785338860,1.3286992,110610.0,110600.0,0.00219119]
[1756785339021,1.3329092,110610.0,110600.0,0.00219119]
[1756785339633,1.3329092,110610.0,110600.0,0.00014119]
[1756785346400,1.66411879,110610.0,110600.0,0.00014119]
[1756785346577,6.71395265,110610.0,110600.0,0.00014119]
[1756785346811,6.75285136,110610.0,110600.0,0.00014119]
[1756785346929,6.70894965,110610.0,110600.0,0.00014119]
[1756785347156,6.75291992,110610.0,110600.0,0.00014119]
[1756785347341,6.84483591,110610.0,110600.0,0.00014119]
[1756785348136,6.9367519,110610.0,110600.0,0.00014119]
[1756785348348,6.6142002,110610.0,110600.0,0.00014119]
[1756785348748,6.52228201,110610.0,110600.0,0.00014119]
[1756785348970,6.80523202,110610.0,110600.0,0.00014119]
[1756785349287,6.52228201,110610.0,110600.0,0.00014119]
[1756785350333,6.86228201,110610.0,110600.0,0.00014119]
[1756785350758,0.74679727,110560.0,110550.0,0.25768992]
[1756785350936,0.74679727,110560.0,110550.0,0.34960591]
[1756785351184,0.74679727,110560.0,110550.0,0.1707423]
[1756785351396,0.74679727,110560.0,110550.0,0.2781096]
[1756785351815,0.74679727,110560.0,110550.0,0.09719599]
[1756785351989,0.74679727,110560.0,110550.0,0.10819599]
[1756785352229,0.74688224,110560.0,110550.0,0.10819599]
[1756785352463,0.74688224,110560.0,110550.0,0.2891096]
[1756785352666,0.76747683,110560.0,110550.0,0.2891096]
[1756785352871,0.76747683,110560.0,110550.0,0.2851096]
[1756785353578,0.48484706,110560.0,110550.0,0.2851096]
[1756785354085,0.48484706,110560.0,110550.0,0.2791096]
[1756785354511,0.48484706,110560.0,110550.0,0.2811096]
[1756785354957,0.48484706,110560.0,110550.0,0.2821096]
[1756785357422,0.64197706,110560.0,110550.0,0.004]
[1756785357677,1.35440287,110560.0,110550.0,0.004]
[1756785357884,1.38159687,110560.0,110550.0,0.004]
[1756785358316,1.14068131,110560.0,110550.0,0.004]
[1756785358517,0.85204106,110560.0,110550.0,0.00505]
[1756785358739,1.00480106,110560.0,110550.0,0.00528]
[1756785359753,1.00480106,110560.0,110550.0,0.00205]
[1756785360389,1.00380106,110560.0,110550.0,0.18619361]
[1756785360597,0.56877081,110560.0,110550.0,0.18619361]
[1756785360782,1.00380106,110560.0,110550.0,0.18619361]
[1756785361225,0.72053081,110560.0,110550.0,0.18619361]
[1756785361430,1.00380106,110560.0,110550.0,0.18696361]
[1756785362415,1.00380106,110560.0,110550.0,0.19019361]
[1756785362949,1.00380106,110560.0,110550.0,0.18696361]
[1756785363361,1.00596106,110560.0,110550.0,0.18696361]
[1756785363961,1.00596106,110560.0,110550.0,0.00605]
[1756785364364,1.00380106,110560.0,110550.0,0.2821096]
[1756785364571,0.97660706,110560.0,110550.0,0.2821096]
[1756785364947,0.64394981,110560.0,110550.0,0.2821096]
[1756785365154,0.82484706,110560.0,110550.0,0.2821096]
[1756785365909,0.97865706,110560.0,110550.0,0.09796599]
[1756785366122,0.98163706,110560.0,110550.0,0.004]
[1756785366333,0.82987706,110560.0,110550.0,0.004]
[1756785366542,0.98163706,110560.0,110550.0,0.004]
[1756785366945,1.00883006,110560.0,110550.0,0.003]
[1756785367181,0.18091361,110550.0,110540.0,0.33567964]
[1756785367385,0.46418386,110550.0,110540.0,0.42961563]
[1756785368996,0.56876981,110560.0,110540.0,0.42961563]
[1756785369135,0.85204006,110560.0,110550.0,0.2758196]
[1756785369357,0.18091361,110550.0,110540.0,0.33567998]
[1756785369705,0.28327025,110550.0,110540.0,0.42759597]
[1756785369931,0.28327025,110550.0,110540.0,0.43061597]
[1756785370125,0.46418386,110550.0,110540.0,0.43061597]
[1756785370559,0.46418386,110550.0,110540.0,0.43361597]
[1756785371344,0.28327025,110550.0,110540.0,0.43361597]
[1756785371693,0.72052981,110560.0,110550.0,0.18091361]
[1756785371931,0.72052981,110560.0,110550.0,0.18293361]
[1756785371932,0.85204006,110560.0,110550.0,0.18293361]
[1756785372143,0.85204006,110560.0,110550.0,0.18592361]
[1756785372343,0.85204006,110560.0,110550.0,0.18293361]
[1756785373057,0.85409006,110560.0,110550.0,0.00202]
[1756785373273,0.85707006,110560.0,110550.0,0.00402]
[1756785373723,0.85707006,110560.0,110550.0,0.18493361]
[1756785373924,1.00883006,110560.0,110550.0,0.18493361]
[1756785375490,0.97865706,110560.0,110550.0,0.2768496]
[1756785376625,0.82689706,110560.0,110550.0,0.2768496]
[1756785376781,0.97865706,110560.0,110550.0,0.2768496]
[1756785377213,0.97660706,110560.0,110550.0,0.2768496]
[1756785377415,0.79570981,110560.0,110550.0,0.2768496]
[1756785377626,0.97660706,110560.0,110550.0,0.2768496]
[1756785378513,0.95601247,110560.0,110550.0,0.2768496]
[1756785379671,0.95806247,110560.0,110550.0,0.2768496]
[1756785381850,0.80630247,110560.0,110550.0,0.2768496]
[1756785382209,0.95806247,110560.0,110550.0,0.2768496]
[1756785382412,0.95806247,110560.0,110550.0,0.4286096]
[1756785383965,0.96104247,110560.0,110550.0,0.4286096]
[1756785384150,0.80928247,110560.0,110550.0,0.4286096]
[1756785385011,0.80630247,110560.0,110550.0,0.4286096]
[1756785385702,0.80928247,110560.0,110550.0,0.4286096]
[1756785386107,0.96104247,110560.0,110550.0,0.09593599]
[1756785386316,0.98059673,110560.0,110550.0,0.09391599]
[1756785386856,0.98059673,110560.0,110550.0,0.2748296]
[1756785386973,0.98059673,110560.0,110550.0,0.09391599]
[1756785387620,0.98059673,110560.0,110550.0,0.2748296]
[1756785390722,0.98059673,110560.0,110550.0,0.2768496]
[1756785392625,0.98059673,110560.0,110550.0,0.2748296]
[1756785392827,0.98059673,110560.0,110550.0,0.09391599]
[1756785397861,0.69732648,110560.0,110550.0,0.09391599]
[1756785398092,0.98059673,110560.0,110550.0,0.09391599]
[1756785403850,1.26386698,110560.0,110550.0,0.002]
[1756785404043,0.98059673,110560.0,110550.0,0.002]
[1756785404230,1.00779073,110560.0,110550.0,0.002]
[1756785405233,1.00775073,110560.0,110550.0,0.002]
[1756785411567,0.98819647,110560.0,110550.0,0.002]
[1756785411799,1.00775095,110560.0,110550.0,0.002]
[1756785415533,1.60196588,110560.0,110550.0,0.002]
[1756785416605,0.18092998,110540.0,110530.0,0.19361344]
[1756785416820,0.74770626,110540.0,110530.0,0.28761943]
[1756785417265,0.77490226,110540.0,110530.0,0.28761943]
[1756785418960,0.77490226,110540.0,110530.0,0.29261943]
[1756785420271,0.20812598,110540.0,110530.0,0.29261943]
[1756785420483,0.59397228,110540.0,110530.0,0.29261943]
[1756785421615,0.77490226,110540.0,110530.0,0.09940599]
[1756785421837,0.77997226,110540.0,110530.0,0.43203233]
[1756785424050,0.77703226,110540.0,110530.0,0.43203233]
[1756785424699,0.21025598,110540.0,110530.0,0.43203233]
[1756785424926,0.77997226,110540.0,110530.0,0.43203233]
[1756785429790,0.77997226,110540.0,110530.0,0.27826233]
[1756785429975,0.77997226,110540.0,110530.0,0.42990233]
[1756785430402,0.77703226,110540.0,110530.0,0.43202233]
[1756785430607,0.78014226,110540.0,110530.0,0.43202233]
[1756785433103,0.21336598,110540.0,110530.0,0.43202233]
[1756785433326,0.78014226,110540.0,110530.0,0.43202233]
[1756785435383,0.78014226,110540.0,110530.0,0.0054]
[1756785435604,1.24140626,110540.0,110530.0,0.0054]
[1756785435832,1.26860426,110540.0,110530.0,0.0054]
[1756785436267,1.26860426,110540.0,110530.0,0.0034]
[1756785436486,1.26860426,110540.0,110530.0,0.0004]
[1756785436710,0.98521612,110540.0,110530.0,0.0024]
[1756785436931,0.98521612,110540.0,110530.0,0.0004]
[1756785437359,0.98521612,110540.0,110530.0,0.0024]
[1756785437544,0.98777612,110540.0,110530.0,0.0024]
[1756785437755,0.98521612,110540.0,110530.0,0.0034]
[1756785438198,0.98521612,110540.0,110530.0,0.0024]
[1756785438410,0.98521612,110540.0,110530.0,0.0034]
[1756785439671,1.02610051,110540.0,110530.0,0.0034]
[1756785440092,1.30948865,110540.0,110530.0,0.0034]
[1756785447095,1.02610051,110540.0,110530.0,0.0034]
[1756785453601,1.31204865,110540.0,110530.0,0.0034]
[1756785453808,1.66324478,110540.0,110530.0,0.0034]
[1756785454007,1.46638707,110540.0,110530.0,0.0034]
[1756785454450,1.44941664,110540.0,110530.0,0.0034]
[1756785454656,1.46638325,110540.0,110530.0,0.0024]
[1756785455066,1.46638325,110540.0,110530.0,0.0014]
[1756785455271,1.93360337,110540.0,110530.0,0.0014]
[1756785455481,1.58274234,110540.0,110530.0,0.0014]
[1756785455697,1.58910375,110540.0,110530.0,0.0014]
[1756785455904,1.59010375,110540.0,110530.0,0.0014]
[1756785456321,1.86713048,110540.0,110530.0,0.0004]
[1756785457316,1.84268738,110540.0,110530.0,0.0004]
[1756785460445,1.8426742,110540.0,110530.0,0.0004]
[1756785460652,1.90681258,110540.0,110530.0,0.0004]
[1756785460886,6.95681104,110540.0,110530.0,0.0004]
[1756785461113,6.98125414,110540.0,110530.0,0.0004]
[1756785461347,6.99608742,110540.0,110530.0,0.0004]
[1756785465060,6.99608742,110540.0,110530.0,1e-08]
[1756785465298,6.96876666,110540.0,110530.0,1e-08]
[1756785465501,7.21533718,110540.0,110530.0,1e-08]
[1756785465718,7.2478745,110540.0,110530.0,1e-08]
[1756785466351,7.79020768,110540.0,110530.0,1e-08]
[1756785467168,7.83901347,110540.0,110530.0,1e-08]
[1756785467383,7.84964423,110540.0,110530.0,1e-08]
[1756785468648,7.79020047,110540.0,110530.0,1e-08]
[1756785470912,7.63852674,110540.0,110530.0,1e-08]
[1756785471143,7.79489392,110540.0,110530.0,1e-08]
[1756785471345,7.79489214,110540.0,110530.0,1e-08]
[1756785471673,7.64325214,110540.0,110530.0,1e-08]
[1756785471870,7.79489214,110540.0,110530.0,1e-08]
[1756785472091,7.88680813,110540.0,110530.0,1e-08]
[1756785472684,7.73516813,110540.0,110530.0,1e-08]
[1756785473234,7.79489214,110540.0,110530.0,1e-08]
[1756785474443,7.76757138,110540.0,110530.0,1e-08]
[1756785474670,7.76756919,110540.0,110530.0,1e-08]
[1756785475405,7.79488995,110540.0,110530.0,1e-08]
[1756785475612,6.66177711,110540.0,110530.0,1e-08]
[1756785476377,6.71592803,110540.0,110530.0,1e-08]
[1756785477377,6.76473382,110540.0,110530.0,1e-08]
[1756785477778,6.75838895,110540.0,110530.0,1e-08]
[1756785477990,6.76473329,110540.0,110530.0,1e-08]
[1756785479726,6.71058237,110540.0,110530.0,1e-08]
[1756785480453,6.67804505,110540.0,110530.0,1e-08]
[1756785480666,6.67548505,110540.0,110530.0,1e-08]
[1756785481083,6.65855479,110540.0,110530.0,1e-08]
[1756785481292,6.67804701,110540.0,110530.0,1e-08]
[1756785481710,6.67804825,110540.0,110530.0,1e-08]
[1756785481891,6.76996424,110540.0,110530.0,1e-08]
[1756785482026,6.76996755,110540.0,110530.0,1e-08]
[1756785482235,0.54190154,110520.0,110510.0,0.00311]
[1756785482446,6.41989359,110520.0,110510.0,0.00311]
[1756785482644,6.41989359,110520.0,110510.0,0.00518]
[1756785482645,6.44928435,110520.0,110510.0,0.00518]
[1756785482855,6.45775262,110520.0,110510.0,0.00518]
[1756785483301,6.48496062,110520.0,110510.0,0.00518]
[1756785483528,0.54191791,110510.0,110500.0,0.006246]
[1756785483744,6.40052831,110510.0,110500.0,0.00671731]
[1756785483945,1.42491817,110510.0,110500.0,0.00878731]
[1756785484158,1.45212717,110510.0,110500.0,0.00878731]
[1756785484358,1.493422,110510.0,110500.0,0.00878731]
[1756785485202,1.209814,110510.0,110500.0,0.00878731]
[1756785486306,1.658514,110510.0,110500.0,0.00878731]
[1756785486493,1.659514,110510.0,110500.0,0.00878731]
[1756785487405,1.95159161,110510.0,110500.0,0.00878731]
[1756785488618,1.95366161,110510.0,110500.0,0.00878731]
[1756785490286,1.95159161,110510.0,110500.0,0.00878731]
[1756785490483,1.95159403,110510.0,110500.0,0.00878731]
[1756785490834,1.95160836,110510.0,110500.0,0.00878731]
[1756785491268,1.93066954,110510.0,110500.0,0.00878731]
[1756785492861,1.64706154,110510.0,110500.0,0.00878731]
[1756785493060,1.93066954,110510.0,110500.0,0.00878731]
[1756785493657,1.77902954,110510.0,110500.0,0.00878731]
[1756785493871,1.93066954,110510.0,110500.0,0.00878731]
[1756785494716,1.77902954,110510.0,110500.0,0.00878731]
[1756785494944,1.93066954,110510.0,110500.0,0.00878731]
[1756785495284,1.64706154,110510.0,110500.0,0.00878731]
[1756785495699,1.76198635,110510.0,110500.0,0.00878731]
[1756785495955,2.04559435,110510.0,110500.0,0.00878731]
[1756785496630,2.04560083,110510.0,110500.0,0.00878731]
[1756785497847,1.59690083,110510.0,110500.0,0.00878731]
[1756785498560,1.59690083,110510.0,110500.0,0.00360731]
[1756785499039,1.59690083,110510.0,110500.0,0.00670731]
[1756785499513,1.59690083,110510.0,110500.0,0.00879731]
[1756785501080,1.59054651,110510.0,110500.0,0.00879731]
[1756785501312,1.59689986,110510.0,110500.0,0.00879731]
[1756785501545,1.59689986,110510.0,110500.0,0.00360731]
[1756785501758,1.69694511,110510.0,110500.0,0.00360731]
[1756785502192,6.69694347,110510.0,110500.0,0.00360731]
[1756785502918,6.75694347,110510.0,110500.0,0.00360731]
[1756785504857,6.66502748,110510.0,110500.0,0.00360731]
[1756785505062,6.66502748,110510.0,110500.0,0.00569731]
[1756785505297,6.66502748,110510.0,110500.0,0.00879731]
[1756785507787,6.39846267,110510.0,110500.0,0.00879731]
[1756785507995,0.89105543,110510.0,110500.0,0.00879731]
[1756785508199,0.66981543,110510.0,110500.0,0.00879731]
[1756785508400,0.78222594,110510.0,110500.0,0.00879731]
[1756785508617,1.10527933,110510.0,110500.0,0.00879731]
[1756785508819,1.04527933,110510.0,110500.0,0.00879731]
[1756785509378,0.76167133,110510.0,110500.0,0.00879731]
[1756785509599,0.71266024,110510.0,110500.0,0.10297574]
[1756785509803,1.04527933,110510.0,110500.0,0.10297574]
[1756785510206,1.02573092,110510.0,110500.0,0.28397121]
[1756785510408,0.69311183,110510.0,110500.0,0.28170877]
[1756785510610,0.40950383,110510.0,110500.0,0.28170877]
[1756785511292,0.38229483,110510.0,110500.0,0.28170877]
[1756785513863,0.341,110510.0,110500.0,0.28170877]
[1756785514337,0.624608,110510.0,110500.0,0.28170877]
[1756785517359,0.341,110510.0,110500.0,0.28170877]
[1756785518765,0.001,110510.0,110500.0,0.28170877]
[1756785518970,0.001,110510.0,110500.0,0.56531677]
[1756785519375,0.34,110520.0,110510.0,0.18097909]
[1756785519577,0.34,110520.0,110510.0,0.27836731]
[1756785519812,0.34,110520.0,110510.0,0.27807508]
[1756785521404,0.34,110520.0,110510.0,0.28107508]
[1756785522192,0.34,110520.0,110510.0,0.28307508]
[1756785523034,0.34,110520.0,110510.0,0.43487508]
[1756785523236,0.34,110520.0,110510.0,0.28307508]
[1756785523443,0.34,110520.0,110510.0,0.43483508]
[1756785525915,0.34,110520.0,110510.0,0.43479508]
[1756785526353,0.34,110520.0,110510.0,0.28307508]
[1756785526568,0.34,110520.0,110510.0,0.43479508]
[1756785528931,0.34,110520.0,110510.0,0.28307508]
[1756785529108,0.34,110520.0,110510.0,0.43475508]
[1756785529663,0.40081257,110540.0,110520.0,0.18096272]
[1756785529872,0.283608,110530.0,110520.0,0.27835074]
[1756785530041,0.283608,110530.0,110520.0,0.27805871]
[1756785530577,0.40347257,110540.0,110530.0,0.18094634]
[1756785530782,0.68906057,110540.0,110530.0,0.18094634]
[1756785531589,0.68906037,110540.0,110530.0,0.18094634]
[1756785531794,1.02640037,110540.0,110530.0,0.18194634]
[1756785531996,0.74279237,110540.0,110530.0,0.18194634]
[1756785532195,1.02640037,110540.0,110530.0,0.18194634]
[1756785535559,1.30961491,110540.0,110530.0,0.001]
[1756785536131,1.31226491,110540.0,110530.0,0.001]
[1756785537849,1.33178106,110540.0,110530.0,0.001]
[1756785540398,1.32913106,110540.0,110530.0,0.001]
[1756785543392,1.34609706,110540.0,110530.0,0.001]
[1756785543540,1.34874706,110540.0,110530.0,0.001]
[1756785543751,1.34609706,110540.0,110530.0,0.001]
[1756785545284,1.35458223,110540.0,110530.0,0.001]
[1756785545482,1.34609706,110540.0,110530.0,0.001]
[1756785545867,1.35458277,110540.0,110530.0,0.001]
[1756785546196,1.34609706,110540.0,110530.0,0.001]
[1756785546427,1.35458468,110540.0,110530.0,0.001]
[1756785548241,1.38530582,110540.0,110530.0,0.001]
[1756785548742,1.23350582,110540.0,110530.0,0.00606]
[1756785548943,1.38510582,110540.0,110530.0,0.00606]
[1756785549356,1.34378985,110540.0,110530.0,0.00606]
[1756785549574,1.36077832,110540.0,110530.0,0.00606]
[1756785549981,1.35879832,110540.0,110530.0,0.00606]
[1756785550420,1.36077832,110540.0,110530.0,0.00606]
[1756785551031,1.36077832,110540.0,110530.0,0.001]
[1756785551863,1.36342832,110540.0,110530.0,0.001]
[1756785552075,1.38777727,110540.0,110530.0,0.001]
[1756785552934,1.36230118,110540.0,110530.0,0.001]
[1756785553122,0.82095878,110540.0,110530.0,0.001]
[1756785553332,1.38778132,110540.0,110530.0,0.001]
[1756785557697,1.38513132,110540.0,110530.0,0.001]
[1756785558152,1.38778132,110540.0,110530.0,0.001]
[1756785558364,1.35706129,110540.0,110530.0,0.001]
[1756785559111,1.35441129,110540.0,110530.0,0.001]
[1756785560973,1.35706129,110540.0,110530.0,0.001]
[1756785561135,1.35441129,110540.0,110530.0,0.001]
[1756785561356,1.34591788,110540.0,110530.0,0.001]
[1756785562032,1.16038839,110540.0,110530.0,0.001]
[1756785562204,1.14340157,110540.0,110530.0,0.001]
[1756785562612,1.17060057,110540.0,110530.0,0.001]
[1756785564290,1.45666184,110540.0,110530.0,0.001]
[1756785564493,1.50945454,110540.0,110530.0,0.001]
[1756785564675,1.51582254,110540.0,110530.0,0.001]
[1756785566688,1.55746058,110540.0,110530.0,0.001]
[1756785568024,1.33731079,110540.0,110530.0,0.001]
[1756785568230,1.51824077,110540.0,110530.0,0.001]
[1756785569005,1.57824077,110540.0,110530.0,0.001]
[1756785570043,2.11642284,110540.0,110530.0,0.001]
[1756785570260,2.02450685,110540.0,110530.0,0.001]
[1756785570476,1.76544555,110540.0,110530.0,0.001]
[1756785570684,6.76540555,110540.0,110530.0,0.001]
[1756785570890,0.18097909,110510.0,110500.0,0.08023362]
[1756785571094,0.46439036,110510.0,110500.0,0.17412961]
[1756785571315,0.50495171,110510.0,110500.0,0.17412961]
[1756785571926,0.50495171,110510.0,110500.0,0.1005833]
[1756785572544,0.22154044,110510.0,110500.0,0.1005833]
[1756785572753,0.50495171,110510.0,110500.0,0.1005833]
[1756785573207,0.50495171,110510.0,110500.0,0.1025833]
[1756785573433,0.22154044,110510.0,110500.0,0.1025833]
[1756785573678,0.50495171,110510.0,110500.0,0.1025833]
[1756785573926,0.50495171,110510.0,110500.0,0.1035833]
[1756785575434,0.78836298,110510.0,110500.0,0.1035833]
[1756785576300,0.50495171,110510.0,110500.0,0.1035833]
[1756785576738,0.50495171,110510.0,110500.0,0.2551433]
[1756785577760,0.22154044,110510.0,110500.0,0.2551433]
[1756785577982,0.46439036,110510.0,110500.0,0.43613877]
[1756785581437,0.49159289,110520.0,110500.0,0.43613877]
[1756785581640,0.28341127,110510.0,110500.0,0.43305877]
[1756785581846,0.46439036,110510.0,110500.0,0.2520633]
[1756785582401,0.46439036,110510.0,110500.0,0.43499877]
[1756785582605,0.18097909,110510.0,110500.0,0.43499877]
[1756785582816,0.46439036,110510.0,110500.0,0.43399877]
[1756785582992,0.46439036,110510.0,110500.0,0.2530033]
[1756785583140,0.46439036,110510.0,110500.0,0.2520033]
[1756785583505,0.46439036,110510.0,110500.0,0.2530033]
[1756785583961,0.46439036,110510.0,110500.0,0.2550033]
[1756785587138,0.46439036,110510.0,110500.0,0.1034433]
[1756785587368,0.46439036,110510.0,110500.0,0.2550033]
[1756785590140,0.18097909,110510.0,110500.0,0.2550033]
[1756785590350,0.46439036,110510.0,110500.0,0.2550033]
[1756785594029,0.46439036,110510.0,110500.0,0.1034433]
[1756785594185,0.46439036,110510.0,110500.0,0.2550033]
[1756785595233,0.26808965,110510.0,110500.0,0.2550033]
[1756785595347,0.44906874,110510.0,110500.0,0.1034433]
[1756785595577,0.44906874,110510.0,110500.0,0.2550033]
[1756785596387,0.46439036,110510.0,110500.0,0.2550033]
[1756785596920,0.46439036,110510.0,110500.0,0.1034433]
[1756785597140,0.46637036,110510.0,110500.0,0.2550033]
[1756785597553,0.46647237,110510.0,110500.0,0.2550033]
[1756785597745,0.46449237,110510.0,110500.0,0.2550033]
[1756785597967,0.46647237,110510.0,110500.0,0.2550033]
[1756785599094,0.18295909,110510.0,110500.0,0.2550033]
[1756785599293,0.46647237,110510.0,110500.0,0.2550033]
[1756785599458,0.46647237,110510.0,110500.0,0.1034433]
[1756785599666,0.46647237,110510.0,110500.0,0.2550033]
[1756785600247,0.18295909,110510.0,110500.0,0.2550033]
[1756785600465,0.46449237,110510.0,110500.0,0.2550033]
[1756785600767,0.46648237,110510.0,110500.0,0.1034433]
[1756785600972,0.18296909,110510.0,110500.0,0.2550033]
[1756785601176,0.46648237,110510.0,110500.0,0.2550033]
[1756785601387,0.18097909,110510.0,110500.0,0.2550033]
[1756785601810,0.46449237,110510.0,110500.0,0.2550033]
[1756785602026,0.46648237,110510.0,110500.0,0.2550033]
[1756785602371,0.18097909,110510.0,110500.0,0.2550033]
[1756785602597,0.46449237,110510.0,110500.0,0.2550033]
[1756785602814,0.18097909,110510.0,110500.0,0.2550033]
[1756785603001,0.46449237,110510.0,110500.0,0.2550033]
[1756785604476,0.46449237,110510.0,110500.0,0.43599877]
[1756785604682,0.4644909,110520.0,110500.0,0.43599877]
[1756785604858,0.8044909,110520.0,110510.0,0.09711822]
[1756785605069,0.8044909,110520.0,110510.0,0.09925822]
[1756785605453,0.84708562,110520.0,110510.0,0.09417822]
[1756785605654,0.18097909,110510.0,110500.0,0.15712731]
[1756785605861,0.18097909,110510.0,110500.0,0.2500433]
[1756785605862,0.46648237,110510.0,110500.0,0.2500433]
[1756785606027,0.46912237,110510.0,110500.0,0.2480433]
[1756785606213,0.46238237,110510.0,110500.0,0.2480433]
[1756785606421,0.46039237,110510.0,110500.0,0.2532033]
[1756785606820,0.17687909,110510.0,110500.0,0.2552033]
[1756785607262,0.17687909,110510.0,110500.0,0.43519877]
[1756785608765,0.17687909,110510.0,110500.0,0.43619877]
[1756785609666,0.17687909,110510.0,110500.0,0.46339777]
[1756785609905,0.18097762,110520.0,110500.0,0.46339777]
[1756785610103,0.18097762,110520.0,110510.0,0.16377822]
[1756785610280,0.18097762,110520.0,110510.0,0.16696822]
[1756785610416,0.18097762,110520.0,110510.0,0.16893822]